fUSD/lending_fUSD_20241226
["ID","MTS","AMOUNT","RATE_DAILY","PERIOD"]
[346693624,1735194646373,-666.0,0.00014373,2]
[346693625,1735194646383,-7273.38586043,0.00014374,2]
[346693626,1735194646392,-150.0,0.00014375,2]
[346693627,1735194646402,-150.0,0.00014376,2]
[346693628,1735194646411,-666.0,0.00014383,2]
[346693629,1735194646420,-8827.54,0.00014384,2]
[346693630,1735194646429,-666.0,0.00014389,2]
[346693631,1735194646439,-9837.15760205,0.0001439,2]
[346693632,1735194646448,-150.0,0.00014395,2]
[346693633,1735194646457,-150.0,0.00014409,2]
[346693634,1735194646466,-150.0,0.00014417,2]
[346693635,1735194646475,-934.14795587,0.00014422,2]
[346693636,1735194646484,-150.0,0.00014433,2]
[346693637,1735194646493,-3149.87823692,0.00014438,2]
[346693638,1735194646503,-150.0,0.0001444,2]
[346693639,1735194646512,-150.0,0.00014442,2]
[346693640,1735194646522,-1000.0,0.00014442,5]
[346693641,1735194646531,-150.0,0.00014463,2]
[346693642,1735194646540,-150.0,0.00014475,2]
[346693643,1735194646550,-150.0,0.00014485,2]
[346693644,1735194646559,-150.0,0.0001449,2]
[346693645,1735194646568,-150.0,0.00014508,2]
[346693646,1735194646577,-150.0,0.00014509,2]
[346693647,1735194646587,-666.0,0.0001451,2]
[346693648,1735194646595,-948.66304614,0.00014511,2]
[346693649,1735194646604,-150.0,0.00014511,2]
[346693650,1735194646613,-3146.0,0.00014511,2]
[346693651,1735194646622,-150.0,0.0001453,2]
[346693652,1735194646631,-150.0,0.00014542,2]
[346693653,1735194646640,-150.0,0.00014547,2]
[346693654,1735194646649,-150.0,0.00014553,2]
[346693655,1735194646658,-150.0,0.00014575,2]
[346693656,1735194646667,-150.0,0.00014575,2]
[346693657,1735194646676,-150.0,0.00014575,2]
[346693658,1735194646685,-150.0,0.00014598,2]
[346693659,1735194646694,-150.0,0.00014604,2]
[346693660,1735194646704,-150.0,0.00014609,2]
[346693661,1735194646713,-150.0,0.0001462,2]
[346693662,1735194646723,-934.14795587,0.00014627,2]
[346693663,1735194646733,-150.0,0.00014642,2]
[346693664,1735194646743,-150.0,0.00014643,2]
[346693665,1735194646751,-150.0,0.00014661,2]
[346693666,1735194646760,-150.0,0.00014666,2]
[346693667,1735194646769,-150.0,0.00014675,2]
[346693668,1735194646778,-150.0,0.00014688,2]
[346693669,1735194646787,-500.0,0.000147,5]
[346693670,1735194646796,-150.0,0.00014709,2]
[346693671,1735194646807,-150.0,0.00014711,2]
[346693672,1735194646816,-677.72,0.00014713,2]
[346693673,1735194646825,-150.0,0.00014717,2]
[346693674,1735194646834,-150.0,0.00014733,2]
[346693675,1735194646843,-342.18,0.0001474,2]
[346693676,1735194646852,-150.0,0.00014742,2]
[346693677,1735194646861,-150.0,0.00014756,2]
[346693678,1735194646874,-150.0,0.00014774,2]
[346693679,1735194646894,-150.0,0.00014775,2]
[346693680,1735194646911,-150.0,0.00014778,2]
[346693681,1735194646931,-666.0,0.00014784,2]
[346693682,1735194646948,-666.0,0.00014784,2]
[346693683,1735194646963,-150.0,0.00014785,2]
[346693684,1735194646981,-3146.0,0.00014785,2]
[346693685,1735194646999,-666.0,0.00014799,2]
[346693686,1735194647018,-666.0,0.00014799,2]
[346693687,1735194647035,-800.0,0.000148,5]
[346693688,1735194647053,-150.0,0.00014801,2]
[346693689,1735194647070,-150.0,0.00014809,2]
[346693690,1735194647085,-150.0,0.00014824,2]
[346693691,1735194647102,-150.0,0.00014831,2]
[346693692,1735194647114,-150.0,0.00014831,2]
[346693693,1735194647131,-934.14795587,0.00014833,2]
[346693694,1735194647145,-150.0,0.00014842,2]
[346693695,1735194647158,-150.0,0.00014846,2]
[346693696,1735194647177,-150.0,0.00014869,2]
[346693697,1735194647191,-150.0,0.00014876,2]
[346693698,1735194647205,-150.0,0.00014888,2]
[346693699,1735194647219,-150.0,0.00014891,2]
[346693700,1735194647233,-666.0,0.00014899,2]
[346693701,1735194647247,-666.0,0.00014899,2]
[346693702,1735194647261,-668.88604146,0.00014899,2]
[346693703,1735194647274,-778.46595342,0.00014899,2]
[346693704,1735194647289,-175.9437291,0.00014899,2]
[346693705,1735194647304,-676.08,0.000149,2]
[346693706,1735194647319,-23171.848913,0.000149,2]
[346693707,1735194647334,-165.01883046,0.000149,2]
[346693708,1735194647349,-568.74439828,0.000149,2]
[346693709,1735194647366,-1100.0,0.000149,5]
[346693710,1735194647381,-214.82850374,0.000149,2]
[346693711,1735194647396,-150.0,0.00014909,2]
[346693712,1735194647410,-150.0,0.00014914,2]
[346693713,1735194647426,-308.43,0.0001492,2]
[346693714,1735194647443,-150.0,0.00014936,2]
[346693715,1735194647458,-150.0,0.00014942,2]
[346693716,1735194647473,-150.0,0.00014945,2]
[346693717,1735194647487,-150.0,0.00014959,2]
[346693718,1735194647501,-150.0,0.00014976,2]
[346693719,1735194647516,-150.0,0.00014981,2]
[346693720,1735194647531,-666.0,0.00014989,2]
[346693721,1735194647545,-666.0,0.00014989,2]
[346693722,1735194647559,-10010.0,0.0001499,2]
[346693723,1735194647574,-73468.69410269,0.0001499,2]
[346693724,1735194647588,-568.74439822,0.00014992,2]
[346693725,1735194647602,-666.0,0.00014996,2]
[346693726,1735194647617,-666.0,0.00014996,2]
[346693727,1735194647631,-16139.92998056,0.00014997,2]
[346693728,1735194647646,-704.30431351,0.00014998,2]
[346693729,1735194647660,-94920.33254977,0.00014999,2]
[346693730,1735194647677,-500.0,0.00014999,2]
[346693731,1735194647692,-1013.3493142,0.00014999,2]
[346693732,1735194647709,-269.34378076,0.00015,2]
[346693733,1735194647723,-29733.30915905,0.00015,2]
[346693741,1735195394221,279.11,0.00011475,2]
[346693742,1735195427376,227.804814,9.643e-05,2]
[346693743,1735195427679,227.804814,9.645e-05,2]
[346693744,1735195428170,153.566144,9.643e-05,2]
[346693745,1735195428435,227.804814,9.646e-05,2]
[346693746,1735195429194,227.804814,9.648e-05,2]
[346693747,1735195429524,227.804814,9.782e-05,2]
[346693748,1735195429970,227.804814,9.784e-05,2]
[346693749,1735195430170,227.804814,9.79e-05,2]
[346693750,1735195430412,227.804814,9.792e-05,2]
[346693751,1735195430701,227.804814,9.794e-05,2]
[346693752,1735195430990,227.804814,9.794e-05,2]
[346693753,1735195431298,227.804814,9.797e-05,2]
[346693754,1735195433466,227.804814,9.798e-05,2]
[346693755,1735195433599,227.804814,9.92e-05,2]
[346693756,1735195433893,227.804814,0.00010056,2]
[346693757,1735195434191,164.12067801,0.00010066,2]
[346693767,1735195831771,-478.31588386,0.00012,2]
[346693768,1735195831782,-509.29955494,0.00012,2]
[346693769,1735195831818,-1749.3845612,0.00012,2]
[346693770,1735195831828,-250.0,0.0001219,2]
[346693771,1735195831838,-5561.0,0.000124,3]
[346693772,1735195831847,-203.14,0.000126,2]
[346693773,1735195831857,-200.09,0.000126,2]
[346693774,1735195831867,-300.0,0.00012699,2]
[346693775,1735195831876,-201.5,0.000127,2]
[346693776,1735195831888,-202.87,0.000127,2]
[346693777,1735195831898,-202.45,0.000128,2]
[346693778,1735195831908,-203.52,0.000128,2]
[346693779,1735195831918,-201.95,0.000128,2]
[346693780,1735195831927,-200.76,0.000128,2]
[346693781,1735195831937,-5561.0,0.000128,5]
[346693782,1735195831946,-201.87,0.000129,2]
[346693783,1735195831955,-202.89,0.000129,2]
[346693784,1735195831964,-200.0,0.00012911,2]
[346693785,1735195831974,-200.0,0.00012915,2]
[346693786,1735195831983,-200.0,0.0001292,2]
[346693787,1735195831993,-201.42,0.00012998,2]
[346693788,1735195832003,-201.34,0.00012998,2]
[346693789,1735195832012,-201.7,0.00012998,2]
[346693790,1735195832023,-202.02,0.00012998,2]
[346693791,1735195832032,-201.62,0.00012998,2]
[346693792,1735195832043,-202.07,0.00012998,2]
[346693793,1735195832052,-200.55,0.00012998,2]
[346693794,1735195832061,-203.82,0.00012998,2]
[346693795,1735195832071,-201.75,0.00012999,2]
[346693796,1735195832081,-202.92,0.00012999,2]
[346693797,1735195832091,-202.74,0.00012999,2]
[346693798,1735195832100,-202.32,0.00012999,2]
[346693799,1735195832115,-200.71,0.00012999,2]
[346693800,1735195832124,-202.47,0.00012999,2]
[346693801,1735195832134,-200.62,0.00012999,2]
[346693802,1735195832147,-203.95,0.00012999,2]
[346693803,1735195832157,-202.91,0.00012999,2]
[346693804,1735195832167,-201.7,0.00012999,2]
[346693805,1735195832177,-202.48,0.00012999,2]
[346693806,1735195832188,-202.27,0.00012999,2]
[346693807,1735195832197,-202.82,0.00012999,2]
[346693808,1735195832207,-2543.24,0.00013,2]
[346693810,1735195832216,-450.0,0.00013,2]
[346693812,1735195832225,-450.0,0.00013,2]
[346693814,1735195832234,-200.51,0.00013,2]
[346693816,1735195832243,-202.89,0.00013,2]
[346693818,1735195832253,-202.82,0.00013,2]
[346693820,1735195832262,-201.09,0.00013,2]
[346693822,1735195832272,-201.9,0.00013,2]
[346693824,1735195832282,-202.55,0.00013,2]
[346693826,1735195832291,-201.48,0.00013,2]
[346693828,1735195832300,-202.04,0.00013,2]
[346693830,1735195832309,-203.67,0.00013,2]
[346693832,1735195832318,-188.27,0.00013191,2]
[346693834,1735195832327,-250.0,0.00013191,2]
[346693836,1735195832338,-500.0,0.00013432,2]
[346693838,1735195832347,-500.0,0.00013432,2]
[346693840,1735195832356,-590.22945879,0.00013432,2]
[346693850,1735195832439,-409.77054121,0.00013432,2]
[346693852,1735195832449,-200.53,0.00013432,2]
[346693854,1735195832458,-351.13,0.00013491,2]
[346693856,1735195832467,-1450.96945879,0.00013499,2]
[346693858,1735195832478,-1641.04428466,0.00013499,2]
[346693868,1735195837880,-278.44085655,0.00013499,2]
[346693869,1735195837891,-201.07,0.00013499,2]
[346693870,1735195837901,-82.97055292,0.00013528,2]
[346693871,1735195837913,-1433.48944708,0.00013528,2]
[346693872,1735195837922,-598.4277,0.00013599,2]
[346693873,1735195837932,-1000.0,0.00013601,2]
[346693874,1735195837941,-1534.34,0.00013699,2]
[346693875,1735195837950,-150.99,0.00013699,2]
[346693876,1735195837959,-7413.38,0.00013699,2]
[346693877,1735195837969,-150.99,0.00013699,2]
[346693878,1735195837978,-9999.99,0.00013699,2]
[346693879,1735195837989,-999.99,0.00013699,2]
[346693880,1735195837998,-19410.15,0.00013699,2]
[346693881,1735195838009,-3190.24,0.00013699,2]
[346693882,1735195838018,-299.99,0.00013699,2]
[346693883,1735195838027,-3587.6,0.00013699,2]
[346693884,1735195838037,-200.0,0.00013699,2]
[346693885,1735195838047,-4000.0,0.00013699,2]
[346693886,1735195838057,-500.0,0.00013699,2]
[346693887,1735195838067,-617.25,0.00013699,2]
[346693888,1735195838076,-5296.52,0.00013699,2]
[346693889,1735195838087,-1000.0,0.000137,2]
[346693890,1735195838097,-866.0,0.000137,2]
[346693891,1735195838110,-365.0,0.000137,2]
[346693893,1735195838120,-279.11,0.00013738,2]
[346693895,1735195838129,-202.09,0.00013805,2]
[346693897,1735195838139,-420.0,0.00013931,2]
[346693899,1735195838149,-150.0,0.00013981,2]
[346693901,1735195838158,-150.0,0.00013981,2]
[346693903,1735195838167,-150.0,0.00013981,2]
[346693905,1735195838177,-150.0,0.00013981,2]
[346693907,1735195838187,-500.0,0.0001399,2]
[346693909,1735195838196,-150.0,0.00014078,2]
[346693910,1735195838205,-150.0,0.00014136,2]
[346693911,1735195838217,-1557.321,0.00014164,2]
[346693912,1735195838226,-170.745,0.00014164,2]
[346693913,1735195838235,-150.0,0.00014175,2]
[346693914,1735195838244,-295.0,0.00014204,13]
[346693915,1735195838253,-153.0,0.00014204,2]
[346693916,1735195838262,-153.0,0.00014204,2]
[346693917,1735195838271,-153.0,0.00014204,2]
[346693918,1735195838280,-153.0,0.00014204,2]
[346693919,1735195838290,-153.0,0.00014204,2]
[346693920,1735195838300,-153.0,0.00014204,2]
[346693921,1735195838312,-153.0,0.00014204,2]
[346693922,1735195838322,-153.0,0.00014204,2]
[346693923,1735195838333,-153.0,0.00014204,2]
[346693924,1735195838341,-153.0,0.00014204,2]
[346693925,1735195838350,-153.0,0.00014204,2]
[346693926,1735195838359,-153.0,0.00014204,2]
[346693927,1735195838371,-153.0,0.00014204,2]
[346693928,1735195838380,-153.0,0.00014204,2]
[346693929,1735195838391,-153.0,0.00014204,2]
[346693930,1735195838400,-153.0,0.00014204,2]
[346693931,1735195838411,-153.0,0.00014204,2]
[346693932,1735195838422,-153.0,0.00014204,2]
[346693933,1735195838431,-153.0,0.00014204,2]
[346693934,1735195838442,-153.0,0.00014204,2]
[346693935,1735195838453,-153.0,0.00014204,2]
[346693936,1735195838463,-153.0,0.00014204,2]
[346693937,1735195838473,-153.0,0.00014204,2]
[346693938,1735195838482,-153.0,0.00014204,2]
[346693939,1735195838491,-153.0,0.00014204,2]
[346693940,1735195838501,-153.0,0.00014204,2]
[346693941,1735195838510,-153.0,0.00014204,2]
[346693942,1735195838519,-153.0,0.00014204,2]
[346693943,1735195838529,-153.0,0.00014204,2]
[346693944,1735195838538,-153.0,0.00014204,2]
[346693945,1735195838547,-153.0,0.00014204,2]
[346693946,1735195838556,-153.0,0.00014204,2]
[346693947,1735195838565,-153.0,0.00014204,2]
[346693948,1735195838574,-153.0,0.00014204,2]
[346693949,1735195838583,-153.0,0.00014204,2]
[346693950,1735195838592,-153.0,0.00014204,2]
[346693951,1735195838601,-153.0,0.00014204,2]
[346693952,1735195838611,-153.0,0.00014204,2]
[346693953,1735195838620,-153.0,0.00014204,2]
[346693954,1735195838631,-153.0,0.00014204,2]
[346693955,1735195838640,-153.0,0.00014204,2]
[346693956,1735195838648,-153.0,0.00014204,2]
[346693957,1735195838658,-153.0,0.00014204,2]
[346693958,1735195838667,-153.0,0.00014204,2]
[346693959,1735195838676,-153.0,0.00014204,2]
[346693960,1735195838685,-153.0,0.00014204,2]
[346693961,1735195838694,-153.0,0.00014204,2]
[346693962,1735195838703,-153.0,0.00014204,2]
[346693963,1735195838712,-153.0,0.00014204,2]
[346693964,1735195838721,-153.0,0.00014204,2]
[346693965,1735195838731,-153.0,0.00014204,2]
[346693966,1735195838740,-153.0,0.00014204,2]
[346693967,1735195838749,-153.0,0.00014204,2]
[346693968,1735195838758,-153.0,0.00014204,2]
[346693969,1735195838768,-153.0,0.00014204,2]
[346693970,1735195838777,-153.0,0.00014204,2]
[346693971,1735195838786,-153.0,0.00014204,2]
[346693972,1735195838795,-153.0,0.00014204,2]
[346693973,1735195838804,-153.0,0.00014204,2]
[346693974,1735195838813,-153.0,0.00014204,2]
[346693975,1735195838822,-153.0,0.00014204,2]
[346693976,1735195838831,-153.0,0.00014204,2]
[346693977,1735195838840,-153.0,0.00014204,2]
[346693978,1735195838850,-153.0,0.00014204,2]
[346693979,1735195838860,-153.0,0.00014204,2]
[346693980,1735195838870,-153.0,0.00014204,2]
[346693981,1735195838880,-153.0,0.00014204,2]
[346693982,1735195838890,-153.0,0.00014204,2]
[346693983,1735195838899,-153.0,0.00014204,2]
[346693984,1735195838908,-153.0,0.00014204,2]
[346693985,1735195838918,-153.0,0.00014204,2]
[346693986,1735195838927,-153.0,0.00014204,2]
[346693987,1735195838936,-153.0,0.00014204,2]
[346693988,1735195838945,-153.0,0.00014204,2]
[346693989,1735195838954,-153.0,0.00014204,2]
[346693990,1735195838963,-153.0,0.00014204,2]
[346693991,1735195838972,-153.0,0.00014204,2]
[346693992,1735195838981,-153.0,0.00014204,2]
[346693993,1735195838991,-153.0,0.00014204,2]
[346693994,1735195839177,-153.0,0.00014204,2]
[346693995,1735195839188,-153.0,0.00014204,2]
[346693996,1735195839197,-153.0,0.00014204,2]
[346693997,1735195839207,-153.0,0.00014204,2]
[346693998,1735195839216,-153.0,0.00014204,2]
[346693999,1735195839226,-153.0,0.00014204,2]
[346694000,1735195839235,-153.0,0.00014204,2]
[346694001,1735195839244,-153.0,0.00014204,2]
[346694002,1735195839253,-153.0,0.00014204,2]
[346694003,1735195839264,-153.0,0.00014204,2]
[346694004,1735195839273,-153.0,0.00014204,2]
[346694005,1735195839283,-153.0,0.00014204,2]
[346694006,1735195839293,-153.0,0.00014204,2]
[346694007,1735195839302,-153.0,0.00014204,2]
[346694008,1735195839312,-153.0,0.00014204,2]
[346694009,1735195839322,-153.0,0.00014204,2]
[346694010,1735195839331,-153.0,0.00014204,2]
[346694011,1735195839341,-153.0,0.00014204,2]
[346694012,1735195839350,-153.0,0.00014204,2]
[346694013,1735195839359,-153.0,0.00014204,2]
[346694014,1735195839367,-153.0,0.00014204,2]
[346694015,1735195839376,-153.0,0.00014204,2]
[346694016,1735195839386,-153.0,0.00014204,2]
[346694017,1735195839395,-153.0,0.00014204,2]
[346694018,1735195839405,-153.0,0.00014204,2]
[346694019,1735195839414,-153.0,0.00014204,2]
[346694020,1735195839424,-153.0,0.00014204,2]
[346694021,1735195839433,-153.0,0.00014204,2]
[346694022,1735195839442,-153.0,0.00014204,2]
[346694023,1735195839451,-153.0,0.00014204,2]
[346694024,1735195839461,-153.0,0.00014204,2]
[346694025,1735195839470,-153.0,0.00014204,2]
[346694026,1735195839479,-153.0,0.00014204,2]
[346694027,1735195839488,-153.0,0.00014204,2]
[346694028,1735195839498,-153.0,0.00014204,2]
[346694029,1735195839507,-153.0,0.00014204,2]
[346694030,1735195839516,-153.0,0.00014204,2]
[346694031,1735195839525,-153.0,0.00014204,2]
[346694032,1735195839534,-153.0,0.00014204,2]
[346694033,1735195839544,-153.0,0.00014204,2]
[346694034,1735195839553,-153.0,0.00014204,2]
[346694035,1735195839563,-153.0,0.00014204,2]
[346694036,1735195839573,-153.0,0.00014204,2]
[346694037,1735195839582,-153.0,0.00014204,2]
[346694038,1735195839592,-150.0,0.0001424,2]
[346694039,1735195839601,-298.977,0.0001425,2]
[346694040,1735195839611,-150.0,0.00014272,2]
[346694041,1735195839620,-150.0,0.00014292,2]
[346694042,1735195839629,-150.0,0.00014369,2]
[346694043,1735195839639,-5296.52,0.00014384,2]
[346694044,1735195839648,-32146.3679,0.00014404,2]
[346694046,1735195839658,-150.0,0.00014447,2]
[346694048,1735195839667,-150.0,0.00014466,2]
[346694049,1735195839676,-150.0,0.00014499,2]
[346694050,1735195839685,-1000.0,0.00014538,2]
[346694051,1735195839694,-150.0,0.00014563,2]
[346694052,1735195839704,-150.0,0.00014602,2]
[346694053,1735195839714,-150.0,0.0001466,2]
[346694054,1735195839723,-352.67991655,0.00014666,2]
[346694055,1735195839733,-200.0,0.00014721,2]
[346694056,1735195839743,-150.0,0.00014758,2]
[346694057,1735195839752,-150.0,0.00014758,2]
[346694058,1735195839761,-150.0,0.00014758,2]
[346694059,1735195839771,-1000.0,0.00014802,2]
[346694060,1735195839780,-150.0,0.00014855,2]
[346694061,1735195839789,-500.0,0.0001488,2]
[346694062,1735195839798,-336.3147,0.00014885,2]
[346694063,1735195839808,-379.8879,0.000149,2]
[346694064,1735195839817,-2662.087,0.000149,2]
[346694065,1735195839826,-165.01883046,0.000149,2]
[346694066,1735195839837,-478.9786,0.000149,2]
[346694067,1735195839846,-564.35115444,0.000149,2]
[346694068,1735195839855,-5000.0,0.000149,2]
[346694069,1735195839865,-175.9437291,0.000149,2]
[346694070,1735195839874,-214.82850374,0.000149,2]
[346694071,1735195839883,-214.82850374,0.000149,2]
[346694072,1735195839892,-817.06893921,0.000149,2]
[346694073,1735195839902,-150.0,0.00014913,2]
[346694074,1735195839911,-150.0,0.00014952,2]
[346694075,1735195839920,-817.06893912,0.00014961,2]
[346694076,1735195839930,-46604.10220208,0.00014985,2]
[346694077,1735195839939,-26934.0,0.00014986,2]
[346694078,1735195839948,-564.35115444,0.00014992,2]
[346694079,1735195839958,-197.0657205,0.00014994,2]
[346694080,1735195839968,-236.47886453,0.00014994,2]
[346694081,1735195839977,-187.78910703,0.00014999,2]
[346694082,1735195839987,-251.22715043,0.00014999,2]
[346694083,1735195839996,-541.0,0.00015,2]
[346694084,1735195840006,-99313.02797235,0.00015,2]
[346694085,1735195840016,-15628.0,0.00015,2]
[346694086,1735195840027,-5000.0,0.00015,5]
[346694087,1735195840036,-600.0,0.00015,3]
[346694088,1735195840045,-5000.0,0.00015,2]
[346694089,1735195840055,-3237.94198113,0.00015,2]
[346694090,1735195840064,-10000.0,0.00015,2]
[346694091,1735195840074,-10000.0,0.00015,2]
[346694092,1735195840083,-10000.0,0.00015,2]
[346694093,1735195840093,-12687.63788179,0.00015,10]
[346694094,1735195840103,-500.0,0.00015,2]
[346694095,1735195840116,-500.0,0.00015,3]
[346694096,1735195840126,-412.48,0.00015,2]
[346694097,1735195840135,-505.38,0.00015,2]
[346694098,1735195840146,-500.0,0.00015,2]
[346694099,1735195840156,-8097.43936512,0.00015,2]
[346694100,1735195840165,-8026.13592569,0.00015,2]
[346694101,1735195840175,-412.94225599,0.00015,10]
[346694102,1735195840187,-18832.34217301,0.00015,2]
[346694103,1735195840258,-415.99873259,0.00015,2]
[346694104,1735195840269,-13835.6093195,0.00015,2]
[346694105,1735195840279,-14871.88276917,0.00015,2]
[346694106,1735195840288,-29562.55521829,0.00015,2]
[346694107,1735195840299,-2254.88152453,0.00015,2]
[346694108,1735195840397,-3056.17317469,0.00015,2]
[346694109,1735195840407,-300.0,0.00015,2]
[346694110,1735195840417,-1076.27443659,0.00015,2]
[346694111,1735195840426,-59574.63847256,0.00015,2]
[346694112,1735195840440,-1387.50728587,0.00015,2]
[346694113,1735195840452,-8237.24159278,0.00015,2]
[346694114,1735195840463,-585.73647908,0.00015,2]
[346694115,1735195840472,-29599.0835483,0.00015,7]
[346694116,1735195840483,-3880.54090701,0.00015,7]
[346694117,1735195841329,-1426.4025393,0.00015,7]
[346694118,1735195841370,-565.49243193,0.00015,7]
[346694119,1735195841401,-661.65000002,0.00015,7]
[346694120,1735195841467,-549.73316218,0.00015,7]
[346694124,1735195842935,-7911.16455641,0.00015,7]
[346694125,1735195842951,-16969.54342202,0.00015,7]
[346694126,1735195843032,-369.04840763,0.00015,7]
[346694127,1735195843043,-6177.18706618,0.00015,7]
[346694128,1735195843054,-6053.01259267,0.00015,7]
[346694129,1735195843083,-747.37567247,0.00015,7]
[346694130,1735195843095,-25229.92355078,0.00015,7]
[346694131,1735195843466,-404.47700085,0.00015,7]
[346694154,1735195846115,-427.6945,0.00015,7]
[346694157,1735195846127,-11682.18606109,0.00015,7]
[346694159,1735195846137,-289.1299225,0.00015,7]
[346694165,1735195846253,-2588.80326154,0.00015,7]
[346694171,1735196791142,-208.50141566,0.00010137,2]
[346694175,1735197032033,-60.63858434,0.00010137,2]
[346694176,1735197032043,-1904.60708078,0.00010852,2]
[346694177,1735197032053,-724.92005691,0.00010852,2]
[346694178,1735197032065,-1179.68702387,0.00010852,2]
[346694179,1735197032075,-594.06000639,0.00010852,2]
[346694180,1735197032086,-1310.54707439,0.00010852,2]
[346694181,1735197032095,-1904.60708078,0.00010852,2]
[346694182,1735197032106,-1904.60708078,0.00010852,2]
[346694183,1735197032116,-1904.60708078,0.00010852,2]
[346694184,1735197032127,-1904.60708078,0.00010852,2]
[346694185,1735197032136,-1904.60708078,0.00010852,2]
[346694186,1735197032146,-1904.60708078,0.00010852,2]
[346694187,1735197032155,-1904.60608078,0.00010852,2]
[346694188,1735197032164,-500.0,0.000109,2]
[346694189,1735197032173,-500.0,0.00011448,2]
[346694190,1735197032183,-267.03,0.0001199,2]
[346694191,1735197032192,-208.4997971,0.0001199,2]
[346694192,1735197032203,-5800.0,0.00012948,2]
[346694193,1735197032213,-5800.0,0.00012957,2]
[346694194,1735197032223,-5800.0,0.00012965,2]
[346694195,1735197032233,-5800.0,0.00012974,2]
[346694196,1735197032243,-3051.37438365,0.00012982,2]
[346694197,1735197032296,-540.0,0.00012982,2]
[346694198,1735197032308,-535.47,0.00012982,2]
[346694199,1735197032322,-1673.15561635,0.00012982,2]
[346694200,1735197032331,-903.69325831,0.0001299,2]
[346694201,1735197032342,-4896.30674169,0.0001299,2]
[346694202,1735197032350,-1156.81976711,0.00012999,2]
[346694203,1735197032362,-980.98,0.00012999,2]
[346694204,1735197032373,-1328.681,0.00012999,2]
[346694205,1735197032398,-2333.51923289,0.00012999,2]
[346694206,1735197032409,-298.43353673,0.00013,2]
[346694207,1735197032421,-1990.48646327,0.00013,2]
[346694208,1735197032431,-280.9,0.00013318,2]
[346694209,1735197032440,-1000.0,0.00013424,2]
[346694210,1735197032451,-500.0,0.00013432,2]
[346694211,1735197032461,-800.0,0.00013432,2]
[346694212,1735197032470,-188.27,0.00013466,2]
[346694214,1735197032480,-4141.35,0.00013652,2]
[346694216,1735197032489,-529.07,0.00013699,2]
[346694218,1735197032498,-500.0,0.00013699,2]
[346694220,1735197032507,-4000.0,0.00013699,2]
[346694222,1735197032516,-882.02,0.00013731,2]
[346694224,1735197032526,-3177.91,0.00013804,2]
[346694226,1735197032536,-250.0,0.00013839,2]
[346694228,1735197032547,-166.61,0.00013839,2]
[346694230,1735197032556,-999.99,0.00013839,2]
[346694232,1735197032567,-150.99,0.00013839,2]
[346694234,1735197032575,-1124.34,0.00013839,2]
[346694236,1735197032585,-4482.65,0.00013839,2]
[346694238,1735197032594,-150.0,0.00013936,2]
[346694240,1735197032603,-276.49,0.0001396,2]
[346694242,1735197032612,-200.0,0.0001396,2]
[346694244,1735197032623,-150.0,0.00013981,2]
[346694246,1735197032632,-150.0,0.00013981,2]